bitfinex/quotes_SOLUSD_20250731
["timestamp","ask_amount","ask_price","bid_price","bid_amount"]
[1753957290011,82.85778129,182.3,182.29,0.06]
[1753957290209,16.78468397,182.29,182.28,0.06]
[1753957290401,37.10438346,182.29,182.28,0.06]
[1753957290615,75.14438346,182.29,182.28,0.06]
[1753957290806,77.34369546,182.29,182.28,0.06]
[1753957291913,82.8294599,182.29,182.27,0.06]
[1753957292223,32.47990398,182.28,182.27,0.06]
[1753957292532,32.47990398,182.28,182.27,1e-08]
[1753957292828,37.10438346,182.28,182.27,1e-08]
[1753957293199,16.78468397,182.27,182.26,1e-08]
[1753957293409,75.14204005,182.27,182.26,1e-08]
[1753957293913,80.62840642,182.27,182.26,1e-08]
[1753957294422,42.58840642,182.27,182.26,1e-08]
[1753957294600,80.62840642,182.27,182.26,1e-08]
[1753957295628,3.12530883,182.26,182.25,1e-08]
[1753957295831,15.69522001,182.26,182.25,1e-08]
[1753957296029,15.04522001,182.26,182.25,1e-08]
[1753957296207,53.73522001,182.26,182.25,1e-08]
[1753957296408,52.80970718,182.26,182.25,1e-08]
[1753957296630,55.93501601,182.26,182.25,1e-08]
[1753957296818,14.11970718,182.26,182.25,1e-08]
[1753957297004,55.93501601,182.26,182.25,1e-08]
[1753957298233,78.20636737,182.26,182.25,1e-08]
[1753957298806,75.08105854,182.26,182.25,1e-08]
[1753957299032,78.20636737,182.26,182.25,1e-08]
[1753957300327,60.7716834,182.26,182.25,1e-08]
[1753957301638,60.76313081,182.26,182.25,1e-08]
[1753957302129,61.41313081,182.26,182.25,1e-08]
[1753957304221,61.41301154,182.26,182.25,1e-08]
[1753957308814,73.91424686,182.26,182.25,1e-08]
[1753957309018,90.69893083,182.26,182.25,1e-08]
[1753957309424,78.19769551,182.26,182.25,1e-08]
[1753957309623,75.07238668,182.26,182.25,1e-08]
[1753957309841,78.19769551,182.26,182.25,1e-08]
[1753957310023,61.41301154,182.26,182.25,1e-08]
[1753957310825,58.28770271,182.26,182.25,1e-08]
[1753957311126,60.76301154,182.26,182.25,1e-08]
[1753957313314,26.0,182.24,182.23,0.04000001]
[1753957313638,79.07814798,182.24,182.23,0.04000001]
[1753957314030,83.81245698,182.24,182.23,0.04000001]
[1753957315343,89.29972651,182.24,182.23,0.04000001]
[1753957319045,89.98972651,182.24,182.23,0.04000001]
[1753957319345,89.98490675,182.24,182.23,0.04000001]
[1753957320244,85.88015083,182.24,182.23,0.04000001]
[1753957320627,85.88070189,182.24,182.23,0.04000001]
[1753957320943,51.94600887,182.24,182.23,0.04000001]
[1753957321137,89.29600887,182.24,182.23,0.04000001]
[1753957321533,77.96008608,182.24,182.23,0.04000001]
[1753957321730,81.08539491,182.24,182.23,0.04000001]
[1753957322935,81.77539491,182.24,182.23,0.04000001]
[1753957323133,85.88112568,182.24,182.23,0.04000001]
[1753957323447,89.98685645,182.24,182.23,0.04000001]
[1753957323830,78.65008608,182.24,182.23,0.04000001]
[1753957324042,81.77539491,182.24,182.23,0.04000001]
[1753957324544,86.39753098,182.24,182.23,0.04000001]
[1753957324851,94.61105376,182.24,182.23,0.04000001]
[1753957325544,85.88231372,182.24,182.23,0.04000001]
[1753957325745,89.29923253,182.24,182.23,0.04000001]
[1753957327150,89.98923253,182.24,182.23,0.04000001]
[1753957328554,89.99093668,182.24,182.23,0.04000001]
[1753957329342,89.30093668,182.24,182.23,0.04000001]
[1753957329537,89.3035736,182.24,182.23,0.04000001]
[1753957330244,51.2635736,182.24,182.23,0.04000001]
[1753957330436,89.3035736,182.24,182.23,0.04000001]
[1753957331048,51.2635736,182.24,182.23,0.04000001]
[1753957331352,89.9935736,182.24,182.23,0.04000001]
[1753957332354,94.61570967,182.24,182.23,0.04000001]
[1753957332649,94.64570967,182.24,182.23,0.04000001]
[1753957332858,90.0235736,182.24,182.23,0.04000001]
[1753957333237,94.64570967,182.24,182.23,0.04000001]
[1753957334628,47.31598782,182.24,182.23,0.04000001]
[1753957334837,54.73385175,182.24,182.23,0.04000001]
[1753957335334,49.99954275,182.24,182.23,0.04000001]
[1753957336540,55.48681228,182.24,182.23,0.04000001]
[1753957339259,55.48802154,182.24,182.23,0.04000001]
[1753957342368,56.20802154,182.24,182.23,0.04000001]
[1753957342764,59.33333037,182.24,182.23,0.04000001]
[1753957343443,63.95546644,182.24,182.23,0.04000001]
[1753957343644,26.0,182.22,182.21,0.2]
[1753957343845,79.09606084,182.22,182.21,0.2]
[1753957344044,79.81606084,182.22,182.21,0.2]
[1753957344269,91.73113264,182.22,182.21,0.2]
[1753957344675,91.73216058,182.22,182.21,0.2]
[1753957344865,93.49573705,182.22,182.16,10.5160853]
[1753957345063,17.54066525,182.21,182.16,10.5160853]
[1753957345264,50.69177995,182.2,182.16,10.5160853]
[1753957345469,11.93177995,182.19,182.16,10.5160853]
[1753957345776,45.85505309,182.18,182.16,10.5160853]
[1753957346077,38.04,182.18,182.16,10.5160853]
[1753957346660,38.04,182.18,182.16,5.6272]
[1753957346965,38.04,182.18,182.16,10.5160853]
[1753957348079,38.04,182.18,182.17,4.8888853]
[1753957348259,42.15576401,182.18,182.17,4.8888853]
[1753957348665,38.04,182.18,182.17,4.8888853]
[1753957350675,5.48818724,182.21,182.17,4.8888853]
[1753957350859,45.86004005,182.2,182.19,4.8888853]
[1753957351860,49.97574877,182.2,182.18,4.8888853]
[1753957352066,7.82004005,182.19,182.18,4.8888853]
[1753957353175,45.86004005,182.19,182.18,4.8888853]
[1753957353661,7.82004005,182.19,182.18,4.8888853]
[1753957353862,45.86004005,182.19,182.18,4.8888853]
[1753957354181,7.82004005,182.19,182.18,4.8888853]
[1753957354484,38.04,182.2,182.18,4.8888853]
[1753957354664,38.04,182.2,182.19,4.8888853]
[1753957354988,45.85969149,182.2,182.19,4.8888853]
[1753957356977,38.04,182.21,182.19,12.03516075]
[1753957357177,38.04,182.21,182.2,4.8888853]
[1753957357388,45.85897506,182.21,182.2,4.8888853]
[1753957357973,45.85897506,182.21,182.2,10.3773595]
[1753957358482,45.85878416,182.21,182.2,10.3773595]
[1753957359989,0.03,182.24,182.2,27.16204347]
[1753957360295,38.04,182.23,182.2,22.27315817]
[1753957361582,38.04,182.23,182.22,4.8888853]
[1753957363495,42.4602623,182.23,182.19,94.84617428]
[1753957363684,38.04,182.23,182.22,4.8888853]
[1753957363874,45.85135959,182.23,182.22,4.8888853]
[1753957364296,46.57135959,182.23,182.22,4.8888853]
[1753957365101,46.57135959,182.23,182.19,94.84617428]
[1753957365271,38.04,182.23,182.22,4.8888853]
[1753957365586,41.74006384,182.23,182.22,4.8888853]
[1753957365968,42.46006384,182.23,182.22,4.8888853]
[1753957366880,42.46006384,182.23,182.22,3.12657581]
[1753957373792,42.46006384,182.23,182.2,87.7]
[1753957374007,38.04,182.23,182.22,3.12657581]
[1753957374186,45.84926238,182.23,182.22,3.12657581]
[1753957374501,46.52926238,182.23,182.22,3.12657581]
[1753957376512,46.55926238,182.23,182.22,3.12657581]
[1753957382321,52.04683303,182.23,182.17,0.06]
[1753957382481,3.12657581,182.19,182.17,0.06]
[1753957382686,45.88926238,182.18,182.17,0.06]
[1753957382904,50.68092741,182.18,182.17,0.06]
[1753957383395,54.00750341,182.18,182.17,0.06]
[1753957383784,21.41658014,182.18,182.17,0.06]
[1753957384108,59.55658014,182.18,182.17,0.06]
[1753957384812,59.55585157,182.18,182.17,0.06]
[1753957384990,51.33406558,182.18,182.17,0.06]
[1753957385704,55.44319446,182.18,182.17,0.06]
[1753957386314,51.33406558,182.18,182.17,0.06]
[1753957386985,55.44302344,182.18,182.17,0.06]
[1753957387206,59.5519813,182.18,182.17,0.06]
[1753957387397,59.55180396,182.18,182.17,0.06]
[1753957387601,55.4428461,182.18,182.17,0.06]
[1753957393115,60.33272833,182.18,182.17,0.06]
[1753957395143,55.4428461,182.18,182.17,0.06]
[1753957395509,51.33406558,182.18,182.17,0.06]
[1753957395719,55.436707,182.18,182.17,0.06]
[1753957399629,60.32658923,182.18,182.17,0.06]
[1753957400998,55.436707,182.18,182.17,0.06]
[1753957401325,60.32658923,182.18,182.17,0.06]
[1753957404929,58.56658478,182.18,182.17,0.06]
[1753957405930,55.436707,182.18,182.17,0.06]
[1753957407237,3.69841285,182.18,182.17,0.06]
[1753957407436,69.58907673,182.18,182.17,0.06]
[1753957407734,73.28748958,182.18,182.17,0.06]
[1753957407948,67.79841285,182.18,182.17,3.18987778]
[1753957408120,3.69841285,182.18,182.17,3.18987778]
[1753957408443,38.12,182.18,182.17,3.18987778]
[1753957416157,38.12,182.18,182.17,0.06]
[1753957416333,38.12,182.18,182.17,3.18987778]
[1753957416942,38.84,182.18,182.17,3.18987778]
[1753957417552,44.32907673,182.18,182.17,0.06]
[1753957417756,48.02308593,182.18,182.17,0.06]
[1753957418053,55.25715389,182.18,182.17,0.06]
[1753957420145,55.28715389,182.18,182.17,0.06]
[1753957420344,59.39356253,182.18,182.17,0.06]
[1753957421530,55.69955333,182.18,182.17,0.06]
[1753957421735,59.3964537,182.18,182.17,0.06]
[1753957422669,59.39867441,182.18,182.17,0.06]
[1753957425462,59.4090543,182.18,182.17,0.06]
[1753957425642,56.27917652,182.18,182.17,0.06]
[1753957428471,50.79009979,182.18,182.17,0.06]
[1753957428648,50.07009979,182.18,182.17,0.06]
[1753957428847,55.55917652,182.18,182.17,0.06]
[1753957429070,56.27917652,182.18,182.17,0.06]
[1753957431478,56.28763196,182.18,182.17,0.06]
[1753957432576,50.79855523,182.18,182.17,0.06]
[1753957434263,50.7985319,182.18,182.17,0.06]
[1753957434462,50.0785319,182.18,182.17,0.06]
[1753957434768,50.7585319,182.18,182.17,0.06]
[1753957435652,50.75851587,182.18,182.17,0.06]
[1753957438955,50.75850339,182.18,182.17,0.06]
[1753957440582,50.07850339,182.18,182.17,0.06]
[1753957442073,50.75850339,182.18,182.17,0.06]
[1753957442585,50.75859659,182.18,182.17,0.06]
[1753957445169,50.75886978,182.18,182.17,0.06]
[1753957445500,50.75932529,182.18,182.17,0.06]
[1753957447581,50.75947846,182.18,182.17,0.06]
[1753957447798,50.75963645,182.18,182.17,0.06]
[1753957451685,56.24871318,182.18,182.17,0.06]
[1753957452090,59.37859096,182.18,182.17,0.06]
[1753957454895,61.57887096,182.18,182.17,0.06]
[1753957455272,59.37859096,182.18,182.17,0.06]
[1753957457387,63.99971643,182.18,182.17,0.06]
[1753957457582,59.37859096,182.18,182.17,0.06]
[1753957457787,59.37680558,182.18,182.17,0.06]
[1753957458388,63.99793105,182.18,182.17,0.06]
[1753957458698,59.88156301,182.18,182.17,0.06]
[1753957458874,63.99594897,182.18,182.17,0.06]
[1753957459274,80.78063294,182.18,182.17,0.06]
[1753957459475,80.78791355,182.18,182.16,0.06]
[1753957459697,15.73574677,182.17,182.16,0.06]
[1753957460706,15.73379842,182.17,182.16,0.06]
[1753957460899,21.22142534,182.17,182.16,0.06]
[1753957461088,28.97970942,182.17,182.16,0.06]
[1753957461291,45.76439339,182.17,182.16,0.06]
[1753957461905,45.76226966,182.17,182.16,0.06]
[1753957465112,45.75810181,182.17,182.16,0.06]
[1753957465480,83.81810181,182.17,182.16,0.06]
[1753957465805,79.19181946,182.17,182.16,0.06]
[1753957466003,59.27725749,182.17,182.16,0.06]
[1753957466512,21.21725749,182.17,182.16,0.06]
[1753957466703,59.27023356,182.17,182.16,0.06]
[1753957467909,62.40011156,182.17,182.16,0.06]
[1753957469508,58.29307288,182.17,182.16,0.06]
[1753957469698,62.39934672,182.17,182.16,0.06]
[1753957472583,79.18403069,182.17,182.16,0.06]
[1753957475417,79.17934643,182.17,182.16,0.06]
[1753957475607,79.1786687,182.17,182.16,0.06]
[1753957477193,79.1785248,182.17,182.16,0.06]
[1753957480630,79.17836275,182.17,182.16,0.06]
[1753957481724,76.04848497,182.17,182.16,0.06]
[1753957482020,79.17836275,182.17,182.16,0.06]
[1753957482323,79.17839875,182.17,182.16,0.06]
[1753957483921,79.1745835,182.17,182.16,0.06]
[1753957484287,83.79093991,182.17,182.16,0.06]
[1753957484820,83.82093991,182.17,182.16,0.06]
[1753957485415,83.82051899,182.17,182.16,0.06]
[1753957486830,26.0,182.15,182.14,0.2]
[1753957487115,79.09022256,182.15,182.14,0.2]
[1753957487312,75.65590843,182.15,182.14,0.2]
[1753957487509,79.75915929,182.15,182.14,0.2]
[1753957488002,85.24914007,182.15,182.14,0.2]
[1753957489723,90.74151507,182.15,182.14,0.2]
[1753957490234,86.63887198,182.15,182.14,0.2]
[1753957490422,90.74242528,182.15,182.14,0.2]
[1753957490605,85.25005028,182.15,182.14,0.2]
[1753957493214,37.90019172,182.15,182.14,0.2]
[1753957493414,7.79663842,182.15,182.14,0.2]
[1753957493597,42.1635533,182.15,182.14,3.32987778]
[1753957493798,45.85663842,182.15,182.14,3.32987778]
[1753957496326,45.86055219,182.15,182.14,3.32987778]
[1753957500427,45.86055219,182.15,182.14,0.2]
[1753957500617,45.86055219,182.15,182.14,3.32987778]
[1753957501224,7.80055219,182.15,182.14,3.32987778]
[1753957501421,7.80055219,182.15,182.14,4.89377778]
[1753957501422,38.06,182.15,182.14,4.89377778]
[1753957501822,0.03,182.17,182.14,10.38405998]
[1753957502023,38.06,182.16,182.14,7.2541822]
[1753957502333,38.06,182.16,182.15,3.12987778]
[1753957503311,38.06,182.16,182.15,8.61979224]
[1753957503923,38.06,182.16,182.15,5.48991446]
[1753957504122,38.06,182.16,182.15,3.12987778]
[1753957505218,38.06,182.16,182.15,8.61985856]
[1753957507212,38.09,182.16,182.15,8.61985856]
[1753957512230,38.09,182.16,182.15,21.13936968]
[1753957513936,0.03,182.16,182.15,21.13936968]
[1753957514636,0.03,182.16,182.15,108.83936968]
[1753957515510,0.03,182.16,182.15,126.17305172]
[1753957515736,0.03,182.16,182.15,125.62405365]
[1753957518933,0.03,182.17,182.16,16.78468397]
[1753957519120,0.03,182.17,182.16,32.98304081]
[1753957520136,0.03,182.17,182.16,38.47272021]
[1753957521133,0.03,182.17,182.16,126.17272021]
[1753957521332,0.03,182.17,182.16,125.62375227]
[1753957535742,0.71,182.19,182.16,125.62375227]
[1753957535743,0.03,182.19,182.16,125.62375227]
[1753957535938,0.03,182.19,182.18,19.91456175]
[1753957537066,0.03,182.19,182.18,25.40363848]
[1753957539061,0.03,182.19,182.18,113.10363848]
[1753957540459,0.71,182.23,182.19,3.12987778]
[1753957540763,0.71,182.23,182.22,3.12987778]
[1753957541750,0.71,182.23,182.22,8.61774958]
[1753957553080,0.71,182.23,182.2,87.76]
[1753957553483,4.40217759,182.23,182.2,90.88987778]
[1753957553862,3.72217759,182.23,182.2,90.88987778]
[1753957554068,0.66,182.22,182.2,87.76]
[1753957554368,4.35217759,182.22,182.2,90.88987778]
[1753957554873,3.69217759,182.22,182.2,87.76]
[1753957555080,0.66,182.21,182.2,87.76]
[1753957556670,0.66,182.21,182.2,0.06]
[1753957559076,0.66,182.21,182.2,3.18987778]
[1753957559278,4.7650193,182.21,182.2,3.18987778]
[1753957560490,4.7650193,182.21,182.2,0.06]
[1753957560794,4.7650193,182.21,182.2,3.18987778]
[1753957561086,8.45719689,182.21,182.2,3.18987778]
[1753957561792,4.7650193,182.21,182.2,3.18987778]
[1753957562487,4.7650193,182.21,182.2,0.06]
[1753957562690,13.94536987,182.21,182.2,0.06]
[1753957562891,21.17880586,182.21,182.2,0.06]
[1753957563488,56.06892808,182.21,182.2,0.06]
[1753957564391,56.06598529,182.21,182.2,0.06]
[1753957564687,50.57781231,182.21,182.2,0.06]
[1753957564878,46.47719689,182.21,182.2,0.06]
[1753957569794,50.57176151,182.21,182.2,0.06]
[1753957570304,56.05993449,182.21,182.2,0.06]
[1753957570500,56.05981925,182.21,182.2,0.06]
[1753957571396,51.96014253,182.21,182.2,0.06]
[1753957571802,56.05946677,182.21,182.2,0.06]
[1753957572175,50.99022835,182.21,182.2,0.06]
[1753957572689,59.18780351,182.21,182.2,0.06]
[1753957573082,50.99022835,182.21,182.2,0.06]
[1753957573996,59.18743133,182.21,182.2,0.06]
[1753957577476,59.18236408,182.21,182.2,0.06]
[1753957579502,59.17991248,182.21,182.2,0.06]
[1753957583280,50.99022835,182.21,182.2,0.06]
[1753957583497,59.16592653,182.21,182.2,0.06]
[1753957586306,59.16170547,182.21,182.2,0.06]
[1753957591716,47.14170547,182.21,182.2,0.06]
[1753957592019,13.26819966,182.21,182.2,0.06]
[1753957592409,51.30819966,182.21,182.2,0.06]
[1753957593611,13.26819966,182.21,182.2,0.06]
[1753957593816,38.04,182.21,182.2,3.18987778]
[1753957595597,38.04,182.21,182.2,0.06]
[1753957595802,38.04,182.21,182.2,3.18987778]
[1753957597790,38.04,182.21,182.2,0.06]
[1753957597994,38.04,182.21,182.2,3.18987778]
[1753957602904,38.74,182.21,182.2,0.06]
[1753957603107,44.22817298,182.21,182.2,0.06]
[1753957603313,59.21895545,182.21,182.2,0.06]
[1753957603514,85.21895545,182.21,182.2,0.06]
[1753957606800,85.22049982,182.21,182.2,0.06]
[1753957607007,85.22207981,182.21,182.2,0.06]
[1753957607508,81.13080785,182.21,182.2,0.06]
[1753957607700,85.22239885,182.21,182.2,0.06]
[1753957608721,47.18239885,182.21,182.2,0.06]
[1753957608923,59.20239885,182.21,182.2,0.06]
[1753957617314,59.23239885,182.21,182.2,0.06]
[1753957618833,85.23239885,182.21,182.2,0.06]
[1753957619534,47.21239885,182.21,182.2,0.06]
[1753957619832,85.23239885,182.21,182.2,0.06]
[1753957621411,59.23239885,182.21,182.2,0.06]
[1753957622718,21.21239885,182.21,182.2,0.06]
[1753957622921,59.23239885,182.21,182.2,0.06]
[1753957623928,59.23368091,182.21,182.2,0.06]
[1753957624508,76.01836488,182.21,182.2,0.06]
[1753957625007,78.21864488,182.21,182.2,0.06]
[1753957626216,61.43396091,182.21,182.2,0.06]
[1753957626412,59.23368091,182.21,182.2,0.06]
[1753957626611,55.14080785,182.21,182.2,0.06]
[1753957626825,59.23219726,182.21,182.2,0.06]
[1753957629436,63.84809345,182.21,182.2,0.06]
[1753957632945,63.84825712,182.21,182.2,0.06]
[1753957633242,25.82825712,182.21,182.2,0.06]
[1753957633541,63.84825712,182.21,182.2,0.06]
[1753957634230,55.66543208,182.21,182.2,0.06]
[1753957634419,51.04953589,182.21,182.2,0.06]
[1753957635934,76.34953589,182.21,182.2,0.06]
[1753957636644,84.53229369,182.21,182.2,0.06]
[1753957637136,85.23229369,182.21,182.2,0.06]
[1753957638322,11.89424293,182.21,182.2,0.06]
[1753957638526,37.89424293,182.21,182.2,0.06]
[1753957638727,49.91424293,182.21,182.2,0.06]
[1753957638937,7.80286403,182.21,182.2,3.18987778]
[1753957639141,41.73148513,182.21,182.2,3.18987778]
[1753957639538,41.73348848,182.21,182.2,3.18987778]
[1753957640362,38.05,182.21,182.2,3.18987778]
[1753957640538,38.05,182.21,182.2,0.06]
[1753957640850,38.05,182.21,182.2,3.18987778]
[1753957641042,38.05,182.21,182.2,0.06]
[1753957644759,0.03,182.21,182.2,0.06]
[1753957644942,38.05,182.21,182.2,0.06]
[1753957645537,0.03,182.21,182.2,0.06]
[1753957645734,38.05,182.21,182.2,0.06]
[1753957652143,47.33805076,182.21,182.2,0.06]
[1753957652338,51.01628897,182.21,182.2,0.06]
[1753957652538,59.18946279,182.21,182.2,0.06]
[1753957653264,59.18933991,182.21,182.2,0.06]
[1753957653838,85.18933991,182.21,182.2,0.06]
[1753957654152,59.189086,182.21,182.2,0.06]
[1753957654750,60.94994453,182.21,182.2,0.06]
[1753957656063,60.94920282,182.21,182.2,0.06]
[1753957659045,60.94910872,182.21,182.2,0.06]
[1753957662061,60.95058693,182.21,182.2,0.06]
[1753957664162,86.95058693,182.21,182.2,0.06]
[1753957667071,33.79421882,182.21,182.2,0.06]
[1753957667254,45.81421882,182.21,182.2,0.06]
[1753957667566,38.05,182.21,182.2,0.06]
[1753957675682,38.72,182.21,182.2,0.06]
[1753957676580,42.40060796,182.21,182.2,0.06]
[1753957680672,59.19892816,182.21,182.2,0.06]
[1753957681072,31.48877545,182.19,182.18,0.06]
[1753957681274,84.49953063,182.19,182.18,0.06]
[1753957681586,85.16953063,182.19,182.18,0.06]
[1753957682998,86.93283844,182.19,182.18,0.06]
[1753957687700,86.93175053,182.19,182.18,0.06]
[1753957690713,86.93319393,182.19,182.18,0.06]
[1753957695083,82.04220967,182.19,182.18,0.06]
[1753957695304,86.93319393,182.19,182.18,0.06]
[1753957695508,86.26319393,182.19,182.18,0.06]
[1753957696604,86.93755751,182.19,182.18,0.06]
[1753957697008,37.8677978,182.19,182.18,0.06]
[1753957697199,49.8877978,182.19,182.18,0.12]
[1753957697399,41.70060796,182.19,182.18,0.06]
[1753957697705,49.88991475,182.19,182.18,0.06]
[1753957699818,11.86991475,182.19,182.18,0.06]
[1753957700113,49.88991475,182.19,182.18,0.06]
[1753957702494,49.89134887,182.19,182.18,0.06]
[1753957705923,55.38012432,182.19,182.18,0.06]
[1753957706089,59.19858495,182.19,182.18,0.06]
[1753957707623,56.07012432,182.19,182.18,0.06]
[1753957708316,55.10341815,182.19,182.18,0.06]
[1753957708500,59.2055111,182.19,182.18,0.06]
[1753957709599,75.99019507,182.19,182.18,0.06]
[1753957710203,80.58920138,182.19,182.18,0.06]
[1753957710912,82.35307047,182.19,182.18,0.06]
[1753957711218,82.35307047,182.19,182.18,1e-08]
[1753957711420,82.35134676,182.19,182.18,1e-08]
[1753957711622,95.67369948,182.19,182.18,1e-08]
[1753957711801,42.78468397,182.16,182.15,0.06]
[1753957712010,102.46589472,182.16,182.15,0.06]
[1753957712507,103.15589472,182.16,182.15,0.06]
[1753957712917,108.64557412,182.16,182.15,0.06]
[1753957714916,86.96856043,182.16,182.15,0.06]
[1753957715526,86.98856043,182.16,182.15,0.06]
[1753957716029,48.94856043,182.16,182.15,0.06]
[1753957716324,86.98856043,182.16,182.15,0.06]
[1753957716910,48.94856043,182.16,182.15,0.06]
[1753957717109,86.98856043,182.16,182.15,0.06]
[1753957717311,86.98312345,182.16,182.15,0.06]
[1753957718626,48.94312345,182.16,182.15,0.06]
[1753957718927,86.98312345,182.16,182.15,0.06]
[1753957719522,86.98345996,182.16,182.15,0.06]
[1753957721104,82.09113024,182.16,182.15,0.06]
[1753957721310,86.98345996,182.16,182.15,0.06]
[1753957722427,48.94345996,182.16,182.15,0.06]
[1753957722804,86.96345996,182.16,182.15,0.06]
[1753957723128,82.86635014,182.16,182.15,0.06]
[1753957723338,86.96016429,182.16,182.15,0.06]
[1753957726423,108.63717798,182.16,182.15,0.06]
[1753957726926,98.85251854,182.16,182.15,0.06]
[1753957727127,108.63717798,182.16,182.15,0.06]
[1753957730649,113.24556154,182.16,182.15,1e-08]
[1753957730942,16.78468397,182.15,182.14,0.2]
[1753957731140,38.86902106,182.15,182.14,0.2]
[1753957731353,38.86721776,182.15,182.14,0.2]
[1753957732120,44.35531415,182.15,182.14,0.2]
[1753957732825,37.99172547,182.15,182.14,1e-08]
[1753957733018,42.59557767,182.15,182.14,1e-08]
[1753957733526,45.72817167,182.15,182.14,1e-08]
[1753957737244,26.0,182.12,182.05,0.06]
[1753957737428,57.60159527,182.15,182.05,0.06]
[1753957737429,26.0,182.08,182.05,0.06]
[1753957737623,38.04,182.07,182.05,0.06]
[1753957739828,38.04,182.06,182.05,0.06]
[1753957740937,38.04,182.06,182.05,3.19259324]
[1753957741438,38.04,182.06,182.05,0.06]
[1753957741946,31.49212225,182.08,182.05,0.06]
[1753957742155,38.04,182.07,182.05,0.06]
[1753957742956,38.04,182.07,182.04,9.05859324]
[1753957743135,38.04,182.07,182.04,9.11859324]
[1753957743343,38.04,182.07,182.05,0.06]
[1753957743734,38.04,182.06,182.05,0.06]
[1753957744253,38.04,182.06,182.04,5.926]
[1753957744556,38.04,182.05,182.04,9.11859324]
[1753957744931,38.76,182.05,182.04,4.28]
[1753957745338,38.04,182.05,182.04,4.28]
[1753957746051,38.06,182.05,182.04,4.28]
[1753957746356,6.21248255,182.07,182.04,4.28]
[1753957746544,38.06,182.06,182.04,4.28]
[1753957747056,44.27274648,182.06,182.04,4.28]
[1753957747445,3.13259324,182.07,182.04,4.34]
[1753957747446,26.0,182.07,182.04,4.34]
[1753957747636,38.06,182.06,182.04,7.47259324]
[1753957747831,38.06,182.05,182.04,7.47259324]
[1753957748247,38.06,182.05,182.04,4.28]
[1753957749761,38.06,182.05,182.04,4.34]
[1753957751137,38.78,182.05,182.04,4.34]
[1753957754670,38.06,182.05,182.04,4.34]
[1753957754866,38.08,182.05,182.04,4.34]
[1753957755477,9.34509211,182.07,182.04,4.34]
[1753957755657,46.5709896,182.06,182.04,4.34]
[1753957755862,38.8,182.06,182.04,4.34]
[1753957756675,0.72,182.06,182.04,4.34]
[1753957756861,38.08,182.05,182.04,4.34]
[1753957757377,38.8,182.05,182.04,4.34]
[1753957758869,38.08,182.05,182.04,4.34]
[1753957763072,37.14665707,182.07,182.04,4.34]
[1753957763274,45.83172449,182.06,182.04,4.34]
[1753957763576,38.72,182.06,182.04,4.34]
[1753957764857,38.06,182.06,182.04,4.34]
[1753957765169,26.0,182.07,182.05,3.13259324]
[1753957765367,41.74208518,182.06,182.05,3.13259324]
[1753957767485,41.74208518,182.06,182.04,7.47259324]
[1753957767651,38.06,182.06,182.04,7.47259324]
[1753957768158,38.72,182.06,182.04,7.47259324]
[1753957770753,0.66,182.05,182.04,4.34]
[1753957771465,38.06,182.06,182.04,4.34]
[1753957771662,0.66,182.05,182.04,4.34]
[1753957772381,8.44183644,182.05,182.04,4.34]
[1753957776062,12.54140457,182.05,182.04,4.34]
[1753957777970,12.54164317,182.05,182.04,4.34]
[1753957779782,50.58164317,182.05,182.04,4.34]
[1753957783977,12.54016414,182.05,182.04,4.34]
[1753957784374,50.64016414,182.05,182.04,4.34]
[1753957785992,12.54016414,182.05,182.04,4.34]
[1753957786192,18.03316056,182.05,182.04,4.34]
[1753957786385,56.11316056,182.05,182.04,4.34]
[1753957787980,50.62016414,182.05,182.04,4.34]
[1753957788506,56.11316056,182.05,182.04,4.34]
[1753957788802,54.30016414,182.05,182.04,7.47259324]